[Event "Czech Championship 2022"]
[Site "Usti nad Labem"]
[Date "2022.05.17"]
[Round "4.11"]
[White "Freisler, Pavel"]
[Black "Mikes, Jan"]
[Result "0-1"]
[ECO "A81"]
[WhiteElo "2239"]
[BlackElo "2349"]
[Annotator "TA"]
[PlyCount "82"]
[EventDate "2022.05.12"]
[EventType "swiss"]
[EventCountry "CZE"]
[SourceTitle "playchess.com"]
[Source "ChessBase"]
[SourceQuality "1"]
[TimeControl "40/5400+30:1800+30"]

{[%evp 11,82,23,34,14,26,16,31,30,33,6,4,-3,12,0,17,-26,31,-18,45,28,17,22,28,11,25,12,52,49,166,81,95,89,90,32,41,36,83,49,82,29,27,13,18,24,12,0,189,-300,-331,-664,-676,-668,-653,-795,-633,-600,-599,-664,-559,-541,-499,-648,-560,-550,-527,-577,-582,-600,-583,-595,-575,-541,-525]} 1. d4 {[%emt 0:00:50]} f5 {[%emt 0:00:47]} 2. g3 {[%emt 0:00:28]} Nf6 {[%emt 0:01:33]} 3. Bg2 {[%emt 0:00:05]} e6 {[%emt 0:00:13]} 4. Nf3 {[%emt 0:00:21]} Be7 {[%emt 0:00:06]} 5. O-O {[%emt 0:01:01]} O-O {[%emt 0:00:06]} 6. b3 {[%emt 0:04:11]} a5 {[%emt 0:00:30]} 7. a4 {[%emt 0:00:08] [#] A81: Dutch Defence: 2 g3.} Ne4 $146 {[%emt 0:00:40]} ({Predecessor:} 7... d6 8. Bb2 Qe8 9. e3 Nc6 10. Nc3 Nd8 11. d5 e5 12. Nb5 Qd7 13. Bxe5 Nf7 14. Bxf6 Bxf6 {1-0 (33) Suvrajit,S (2384)-Bentivegna,F (2322) Livigno 2011}) 8. Bb2 {[%emt 0:04:19]} Bf6 {[%emt 0:02:45]} 9. Nfd2 {[%emt 0:17:34] White is slightly better.} d5 {[%emt 0:01:47]} 10. f3 {[%emt 0:10:51]} Ng5 {[%emt 0:01:28]} 11. e3 {[%emt 0:01:12]} c5 {[%emt 0:00:57]} 12. Na3 {[%emt 0:01:03]} Bd7 {[%emt 0:07:49]} 13. Qe2 {[%emt 0:05:32]} Nf7 {[%emt 0:18:25]} (13... cxd4 $11 14. exd4 Qb6) 14. Rad1 {[%emt 0:12:55]} (14. f4 $14) 14... g5 {[%emt 0:06:11]} (14... cxd4 $11 15. exd4 Qb6) 15. c3 {[%emt 0:05:45]} Na6 {[%emt 0:04:01]} 16. Nb5 {[%emt 0:05:49]} Rc8 {[%emt 0:01:09]} 17. Kh1 {[%emt 0:03:12]} Kh8 {[%emt 0:01:09]} 18. e4 {[%emt 0:01:10]} f4 {[%emt 0:01:08]} 19. e5 {[%emt 0:06:35]} Be7 {[%emt 0:02:55]} ({Black should try} 19... Bg7 $14) 20. gxf4 {[%emt 0:01:15]} (20. Bh3 $18 {has better winning chances.}) 20... gxf4 $16 {[%emt 0:00:13]} 21. c4 {[%emt 0:03:35]} Nb4 {[%emt 0:02:43] [#]} 22. Bh3 {[%emt 0:04:22]} (22. dxc5 $1 $16 {cxd5 is the strong threat.} Rxc5 23. Bh3) 22... Ng5 $1 $14 {[%emt 0:24:24]} 23. Bg4 {[%emt 0:00:09]} Bxb5 {[%emt 0:00:07]} (23... Qe8 $14) 24. axb5 $16 {[%emt 0:00:12]} Qe8 {[%emt 0:00:08]} 25. cxd5 {[%emt 0:05:03]} (25. h4 $16 h5 26. hxg5 hxg4 27. Qh2+ (27. fxg4 Qg6 $11) 27... Kg8 28. Qh6 (28. fxg4 Rf7 $11)) 25... Nxd5 $11 {[%emt 0:00:49] White must now prevent ...h5.} 26. Ne4 {[%emt 0:01:35] Strongly threatening Nd6.} Qg6 $1 {[%emt 0:05:05]} 27. Nxg5 {[%emt 0:01:33]} ({Not} 27. Nxc5 $2 Bxc5 28. dxc5 Ne3 $17) 27... Bxg5 {[%emt 0:00:06]} 28. Rg1 {[%emt 0:00:07][%cal Og4e6]} Ne3 $2 {[%emt 0:01:16] [#]} (28... Rg8 $11 {and Black is okay.}) 29. Rc1 $4 {[%emt 0:00:38][%mdl 8192]} (29. d5 $1 $18 {is the narrow road to win.}) 29... cxd4 $19 {[%emt 0:00:40]} 30. Bxd4 {[%emt 0:00:33]} (30. Qd2 Rxc1 31. Qxc1) 30... Rxc1 {[%emt 0:00:14] Black is clearly winning.} 31. Rxc1 {[%emt 0:01:00]} Nxg4 {[%emt 0:00:11][%cal Be3g4,Bg4h6,Bh6f7][%mdl 32]} 32. Rg1 {[%emt 0:00:44]} Nh6 {[%emt 0:01:00]} 33. Bc5 {[%emt 0:00:22]} Re8 {[%emt 0:02:39]} 34. Qg2 {[%emt 0:01:11]} Nf7 {[%emt 0:00:56]} 35. Qg4 {[%emt 0:01:08]} Qf5 {[%emt 0:06:03]} 36. Qh5 {[%emt 0:00:23]} Bh6 {[%emt 0:01:45]} 37. Qxf5 {[%emt 0:01:27]} exf5 {[%emt 0:00:08]} 38. e6 {[%emt 0:00:03]} Rxe6 {[%emt 0:01:43]} 39. Bd4+ {[%emt 0:00:08]} Ne5 {[%emt 0:00:05]} 40. Rc1 {[%emt 0:00:47]} Kg8 {[%emt 0:00:52]} 41. Rc8+ {[%emt 0:01:43]} Bf8 {[%emt 0:00:34] Weighted Error Value: White=0.54/Black=0.38} 0-1

[Event "Czech Championship 2022"]
[Site "Usti nad Labem"]
[Date "2022.05.17"]
[Round "4.12"]
[White "Jun, Rudolf"]
[Black "Mica, Marek"]
[Result "0-1"]
[ECO "C00"]
[WhiteElo "2183"]
[BlackElo "2343"]
[Annotator "TA"]
[PlyCount "106"]
[EventDate "2022.05.12"]
[EventType "swiss"]
[EventCountry "CZE"]
[SourceTitle "playchess.com"]
[Source "ChessBase"]
[SourceQuality "1"]
[TimeControl "40/5400+30:1800+30"]

{[%evp 9,106,8,0,0,-1,-18,-6,-12,-6,-17,-18,-22,-25,-42,-40,-27,-29,-53,-46,-50,-50,-50,-36,-56,-56,-56,-52,-53,-53,-70,-55,-70,-70,-77,-75,-95,-43,-45,-37,-36,-42,-47,-38,-35,-19,-16,-29,-31,-16,-35,-37,-27,-37,-72,-66,-68,0,0,0,-58,-62,-68,-36,-135,-123,-165,-133,-298,-298,-298,-289,-289,-416,-285,-277,-277,-277,-606,-589,-936,-875,-901,-855,-1000,-981,-977,-977,-935,-880,-29975,-29976,-29983,-29984,-29984,-29985,-29994,-29995,-29997,-29998]} 1. e4 {[%emt 0:00:03]} e6 {[%emt 0:00:03]} 2. Qe2 {[%emt 0:03:09]} c5 {[%emt 0:02:38]} 3. Nf3 {[%emt 0:01:16]} Nc6 {[%emt 0:00:09]} 4. c3 {[%emt 0:00:41]} d5 {[%emt 0:00:34]} 5. exd5 {[%emt 0:01:32]} Qxd5 {[%emt 0:00:14]} 6. Na3 {[%emt 0:01:10] C00: French: Unusual White 2nd moves.} Nf6 {[%emt 0:05:18][%cal Bg8f6,Bf6d5,Bd5b6][%mdl 32]} 7. d4 {[%emt 0:03:25]} cxd4 {[%emt 0:01:15] [#] aiming for ...Bxa3.} 8. Nb5 {[%emt 0:00:58] The position is equal.} Bd6 {[%emt 0:02:56] [#] Prevents Nc7+.} 9. Qc4 $146 {[%emt 0:05:26] Strongly threatening Qxd5.} ({Predecessor:} 9. Nbxd4 Nxd4 10. Nxd4 O-O 11. Qf3 e5 12. Qxd5 Nxd5 13. Nc2 Be6 14. Be2 f5 15. O-O {½-½ (42) Bortolin,B-Wirth,C ICCF corr 1978}) 9... Ke7 {[%emt 0:03:31]} 10. Qxd5 {[%emt 0:02:59]} Nxd5 {[%emt 0:00:36]} 11. Nfxd4 {[%emt 0:02:09]} Nxd4 {[%emt 0:01:19]} 12. Nxd4 {[%emt 0:00:11]} e5 {[%emt 0:05:36]} 13. Nb5 {[%emt 0:04:31]} Bc5 {[%emt 0:01:09]} 14. Bc4 {[%emt 0:02:25]} Nb6 {[%emt 0:12:47]} 15. Bb3 {[%emt 0:02:52]} Bf5 {[%emt 0:05:14]} 16. Be3 {[%emt 0:07:15]} Bxe3 {[%emt 0:02:56]} 17. fxe3 {[%emt 0:00:05]} Bd3 {[%emt 0:03:02] Against Rf1} 18. Na3 {[%emt 0:00:50]} Rad8 {[%emt 0:02:39]} 19. Rd1 {[%emt 0:00:29]} Rd7 {[%emt 0:05:19]} 20. Rd2 {[%emt 0:03:51]} Rhd8 {[%emt 0:02:02]} 21. Kf2 {[%emt 0:01:58]} f5 {[%emt 0:01:02]} 22. Rhd1 {[%emt 0:01:20]} e4 {[%emt 0:01:06] Active counter play!} ({Black should play} 22... g6 $17) 23. Nc2 $15 {[%emt 0:08:03]} Bxc2 {[%emt 0:02:02]} (23... a5 {looks sharper.} 24. Nd4 g6 25. a4 Rd6) 24. Rxd7+ {[%emt 0:00:05]} Rxd7 {[%emt 0:00:08]} 25. Rxd7+ {[%emt 0:00:06]} Kxd7 {[%emt 0:00:32]} 26. Bxc2 {[%emt 0:00:07][%mdl 4096] Endgame KB-KN} Nc4 {[%emt 0:02:58]} 27. b4 {[%emt 0:02:37]} Kd6 {[%emt 0:02:25]} 28. Bb3 {[%emt 0:01:20]} Ne5 {[%emt 0:00:09]} 29. Ke2 {[%emt 0:01:31]} g5 {[%emt 0:01:49]} 30. Bg8 $1 {[%emt 0:01:13]} h5 {[%emt 0:00:15]} 31. Bh7 {[%emt 0:00:33]} Ke6 {[%emt 0:00:40]} 32. Bg8+ {[%emt 0:00:29]} Kd6 {[%emt 0:00:27]} 33. Bh7 {[%emt 0:00:19]} Ke6 {[%emt 0:00:05]} 34. Bg8+ {[%emt 0:00:04]} Kf6 {[%emt 0:00:42]} 35. Bd5 {[%emt 0:00:12]} b6 {[%emt 0:00:17]} 36. a3 {[%emt 0:03:44]} (36. c4 $1 $15) 36... h4 $17 {[%emt 0:00:38]} 37. h3 {[%emt 0:02:15]} Ke7 {[%emt 0:03:49]} 38. Bb7 $2 {[%emt 0:01:53] [#] Now White is beyond hope.} (38. Bg8 $17 {might work better.}) 38... Nc4 $1 $19 {[%emt 0:05:07]} 39. a4 {[%emt 0:01:19]} Kd6 {[%emt 0:03:22]} 40. Ba6 {[%emt 0:01:11]} Kd5 {[%emt 0:00:50]} 41. Bb7+ {[%emt 0:30:24]} Ke5 {[%emt 0:31:10] Threatens to win with ...f4.} 42. Ba6 {[%emt 0:00:16]} Na3 {[%emt 0:03:19] Hoping for ...Kd5.} 43. Kd2 $2 {[%emt 0:02:09]} (43. a5) 43... Kd5 {[%emt 0:05:08]} 44. Ke2 {[%emt 0:00:52]} f4 {[%emt 0:03:22]} 45. Bb7+ {[%emt 0:01:07]} Ke5 {[%emt 0:00:54]} 46. Ba6 {[%emt 0:00:37]} Nc2 {[%emt 0:07:24]} 47. exf4+ {[%emt 0:00:14]} gxf4 {[%emt 0:00:19][%cal Bg5f4,Bf4f3][%mdl 32]} 48. Bb7 {[%emt 0:03:43]} Ne3 {[%emt 0:00:57]} 49. b5 {[%emt 0:00:28]} Nxg2 {[%emt 0:02:10] Black mates.} 50. c4 {[%emt 0:00:09]} f3+ {[%emt 0:00:00]} 51. Kf2 {[%emt 0:00:00]} Kf4 {[%emt 0:00:00]} 52. c5 {[%emt 0:00:00]} e3+ {[%emt 0:00:00][%cal Be4e3,Be3e2][%mdl 32]} 53. Kf1 {[%emt 0:00:00]} e2+ {[%emt 0:00:00] Weighted Error Value: White=0.46/Black=0.05 (flawless)} 0-1

[Event "Czech Championship 2022"]
[Site "Usti nad Labem"]
[Date "2022.05.17"]
[Round "4.13"]
[White "Sorm, Daniel"]
[Black "Ocelak, Jakub"]
[Result "1-0"]
[ECO "D27"]
[WhiteElo "2306"]
[BlackElo "2060"]
[Annotator "TA"]
[PlyCount "55"]
[EventDate "2022.05.12"]
[EventType "swiss"]
[EventCountry "CZE"]
[SourceTitle "playchess.com"]
[Source "ChessBase"]
[SourceQuality "1"]
[TimeControl "40/5400+30:1800+30"]

{[%evp 22,55,9,0,55,10,16,24,115,109,119,118,98,115,100,95,104,91,151,101,107,66,83,34,209,195,173,152,543,524,1121,1112,1656,1614,1435,1364]} 1. d4 {[%emt 0:00:03]} d5 {[%emt 0:01:21]} 2. c4 {[%emt 0:01:37]} e6 {[%emt 0:00:03]} 3. Nc3 {[%emt 0:00:18]} c5 {[%emt 0:00:06]} 4. e3 {[%emt 0:01:11]} Nf6 {[%emt 0:00:08]} 5. Nf3 {[%emt 0:00:15]} dxc4 {[%emt 0:00:10]} 6. Bxc4 {[%emt 0:00:24]} a6 {[%emt 0:00:02]} 7. a4 {[%emt 0:03:45]} cxd4 {[%emt 0:07:33]} 8. exd4 {[%emt 0:01:04]} Be7 {[%emt 0:00:42]} 9. O-O {[%emt 0:00:08]} O-O {[%emt 0:00:23]} 10. Qe2 {[%emt 0:01:14]} Nc6 {[%emt 0:10:00]} 11. Rd1 {[%emt 0:00:25]} Nb4 {[%emt 0:16:27]} 12. Ne5 {[%emt 0:04:31]} Re8 {[%emt 0:05:45] D27: Queen's Gambit Accepted: Classical main line: 7 e4!? and 7 a4.} (12... b6 $1 $11) 13. Ne4 {[%emt 0:03:03]} Nxe4 {[%emt 0:16:27]} 14. Qxe4 {[%emt 0:00:44] [#] Threatens to win with Ra3.} Rf8 $146 {[%emt 0:02:08] [#]} (14... f6 $11 {remains equal.}) ({Predecessor:} 14... f6 15. Nf3 Bf8 16. Bf4 Nd5 17. Bg3 b6 18. Re1 Bb7 19. Bd3 g6 20. Qe2 Qd7 {0-1 (32) Dietze,F-Bachmann,K (2325) Germany 1985}) 15. Ra3 $1 $16 {[%emt 0:04:27]} f5 {[%emt 0:04:52]} 16. Qe2 {[%emt 0:01:00] White is much more active. The black rooks are badly placed.} Nd5 {[%emt 0:00:10]} 17. Rh3 {[%emt 0:01:44]} Qe8 {[%emt 0:01:16]} 18. a5 {[%emt 0:09:01]} Bd6 {[%emt 0:07:00]} 19. Re1 {[%emt 0:07:30]} Ra7 {[%emt 0:06:43]} ({Better is} 19... b6) 20. Bd2 {[%emt 0:11:55]} (20. Bb3 $142) 20... b5 {[%emt 0:02:22]} 21. Bb3 {[%emt 0:07:11]} Re7 {[%emt 0:04:13]} 22. Nd3 {[%emt 0:02:29]} ({White should play} 22. Bg5 $16) 22... Bb7 $2 {[%emt 0:04:47]} (22... Qf7 $14) 23. Bg5 $18 {[%emt 0:10:26]} Nf6 {[%emt 0:00:33][%cal Ob7g2]} 24. Re3 {[%emt 0:03:06][%cal Re3e6]} ({Don't do} 24. Bxe6+ Kh8 $16) 24... Qg6 $2 {[%emt 0:03:24] Loses the game.} (24... Be4 $16 {is more resistant.}) 25. Rxe6 {[%emt 0:01:22] White is clearly winning.} Bxh2+ {[%emt 0:05:34]} 26. Kxh2 {[%emt 0:01:54] [#] White wants to mate with Rxf6+.} Rxe6 {[%emt 0:00:22]} 27. Qxe6+ {[%emt 0:05:41]} Kh8 {[%emt 0:00:08]} 28. Qe7 {[%emt 0:01:08][%csl LRb7,LRf8] Weighted Error Value: White=0.16 (very precise) /Black=0.80} 1-0

[Event "Czech Championship 2022"]
[Site "Usti nad Labem"]
[Date "2022.05.17"]
[Round "4.14"]
[White "Soucek, Petr"]
[Black "Hrbek, Stepan"]
[Result "0-1"]
[ECO "D00"]
[WhiteElo "2177"]
[BlackElo "2303"]
[Annotator "TA"]
[PlyCount "94"]
[EventDate "2022.05.12"]
[EventType "swiss"]
[EventCountry "CZE"]
[SourceTitle "playchess.com"]
[Source "ChessBase"]
[SourceQuality "1"]
[TimeControl "40/5400+30:1800+30"]

{[%evp 14,94,0,0,3,-4,5,6,34,26,20,30,31,-43,-50,-50,0,0,0,0,56,0,0,0,0,0,0,4,15,-47,-39,-35,-39,-31,-22,-30,0,-17,-17,-22,-24,-64,-61,-101,-52,-54,-53,-51,-65,-58,-56,-66,-29,-81,-80,-100,-95,-165,-154,-182,-182,-182,-161,-271,-264,-243,-234,-441,-328,-587,-516,-568,-489,-1072,-1017,-29956,-29956,-29953,-29956,-12711,-12270,-5047,-1245]} 1. d4 {[%emt 0:03:41]} Nf6 {[%emt 0:00:24]} 2. Nc3 {[%emt 0:00:22]} d5 {[%emt 0:00:24]} 3. Bf4 {[%emt 0:00:07]} g6 {[%emt 0:01:08]} 4. e3 {[%emt 0:01:09]} Bg7 {[%emt 0:00:32]} 5. Nf3 {[%emt 0:02:25]} O-O {[%emt 0:00:21]} 6. Be2 {[%emt 0:01:09]} c5 {[%emt 0:00:22]} 7. Ne5 {[%emt 0:04:39] 7.dxc5 deserves study.} cxd4 {[%emt 0:04:19]} 8. exd4 {[%emt 0:01:04]} Nc6 {[%emt 0:00:07] D00: 1 d4 d5: Unusual lines.} 9. Qd2 {[%emt 0:03:32]} Nd7 {[%emt 0:13:44][%cal Rd7e5]} 10. Nxd5 {[%emt 0:03:56] [#]} Ndb8 $146 {[%emt 0:00:14] The position is equal.} ({Predecessor:} 10... Ndxe5 11. dxe5 Nxe5 12. Bg5 f6 13. Be3 e6 14. Nc3 Qxd2+ 15. Bxd2 Bd7 16. O-O-O Bc6 {½-½ (45) Ozkan,T (2140)-Audi,A (2328) Paracin 2019}) 11. Bf3 {[%emt 0:09:36] And now 0-0-0 would win.} e6 {[%emt 0:02:04]} 12. Nc3 {[%emt 0:17:43]} Qxd4 {[%emt 0:01:43]} 13. Qxd4 {[%emt 0:08:27]} ({White should play} 13. Nd3 $14) 13... Nxd4 $15 {[%emt 0:00:10]} 14. O-O-O {[%emt 0:07:29]} Nxf3 {[%emt 0:01:01]} (14... f6 $15 15. Nc4 (15. Rxd4 $2 fxe5 16. Rc4 exf4 $19) (15. Nxg6 hxg6 16. Rxd4 e5 $17) 15... Nxf3 16. gxf3 e5) 15. Nxf3 $11 {[%emt 0:00:42]} ({Much worse is} 15. gxf3 g5 16. Bg3 f5 $17) 15... Bxc3 {[%emt 0:13:10]} 16. bxc3 {[%emt 0:00:12]} f6 {[%emt 0:00:06]} (16... b6 $11) 17. Bd6 {[%emt 0:02:41]} (17. Bh6 $1 $14 Re8 18. Nd2) 17... Re8 $1 {[%emt 0:01:19]} 18. Nd2 {[%emt 0:07:23]} e5 {[%emt 0:08:50]} 19. Ne4 {[%emt 0:08:48]} Kg7 {[%emt 0:00:20]} 20. Rhe1 {[%emt 0:00:56]} Nc6 {[%emt 0:01:22]} 21. Kb1 {[%emt 0:03:54]} (21. Ba3 $11) 21... b6 {[%emt 0:03:23]} 22. Ba3 {[%emt 0:03:13]} Be6 {[%emt 0:03:52]} 23. f4 {[%emt 0:05:08]} Rad8 {[%emt 0:07:50]} 24. Nd6 {[%emt 0:00:56]} Rf8 {[%emt 0:01:59][%cal Be8f8,Bf8d8,Bd8d7][%mdl 32]} 25. fxe5 {[%emt 0:01:24]} Nxe5 {[%emt 0:00:59]} 26. Rd4 $1 {[%emt 0:00:36]} Rd7 {[%emt 0:01:37] Inhibits Nb7.} 27. Red1 {[%emt 0:01:26]} Rfd8 {[%emt 0:02:33]} 28. Nb7 {[%emt 0:00:43]} Rxd4 {[%emt 0:00:12]} (28... Rc8 $17 29. Rxd7+ Bxd7) 29. cxd4 $15 {[%emt 0:00:13]} Rd7 {[%emt 0:00:10]} 30. Nd6 {[%emt 0:00:09]} Nc4 {[%emt 0:00:36]} 31. Nxc4 {[%emt 0:00:06]} Bxc4 {[%emt 0:00:04][%mdl 4096] Endgame KRB-KRB} 32. c3 {[%emt 0:01:50]} f5 {[%emt 0:01:29]} 33. Re1 {[%emt 0:00:35]} (33. Bc1 $11) 33... f4 $17 {[%emt 0:03:59]} 34. Re5 {[%emt 0:00:35]} Bf1 {[%emt 0:01:08]} 35. Bc1 {[%emt 0:00:31]} (35. Re7+ $17 Rxe7 36. Bxe7) 35... Rf7 $19 {[%emt 0:00:16]} 36. d5 {[%emt 0:00:30]} Bxg2 {[%emt 0:00:23] [#] aiming for ...f3.} 37. d6 {[%emt 0:00:24][%cal Oc1f4]} f3 {[%emt 0:02:36] White must now prevent ...f2.} 38. Be3 {[%emt 0:00:09]} (38. Re7 {is the only way for White.} Rxe7 39. dxe7) 38... f2 {[%emt 0:02:17]} 39. Bxf2 {[%emt 0:00:07]} Rxf2 {[%emt 0:00:03] KRB-KR} 40. Re7+ $2 {[%emt 0:00:10] [#]} (40. d7 Rd2 41. Re2 Rxd7 42. Rxg2) 40... Kh6 {[%emt 0:00:19]} 41. Rxa7 $2 {[%emt 0:30:31]} (41. d7 Rd2 42. Re2 Rxd7 43. Rxg2) 41... Rd2 {[%emt 0:31:26]} 42. d7 {[%emt 0:01:20]} Bc6 {[%emt 0:00:40][%csl LRd7,LRh2]} 43. Ra6 {[%emt 0:00:05]} (43. Kc1 $142 Rxd7 44. Ra6) 43... Bxd7 {[%emt 0:00:06]} 44. Rxb6 {[%emt 0:00:06]} Bf5+ {[%emt 0:00:10]} 45. Kc1 {[%emt 0:00:11]} Rxa2 {[%emt 0:00:07]} 46. h4 {[%emt 0:01:04]} Rc2+ {[%emt 0:00:07]} 47. Kd1 {[%emt 0:00:03]} Rxc3 {[%emt 0:00:05] Weighted Error Value: White=0.58/Black=0.16 (very precise)} 0-1

[Event "Czech Championship 2022"]
[Site "Usti nad Labem"]
[Date "2022.05.17"]
[Round "4.15"]
[White "Smolik, Jachym"]
[Black "Nytra, Ondrej"]
[Result "1-0"]
[ECO "D31"]
[WhiteElo "2272"]
[BlackElo "2219"]
[Annotator "TA"]
[PlyCount "59"]
[EventDate "2022.05.12"]
[EventType "swiss"]
[EventCountry "CZE"]
[SourceTitle "playchess.com"]
[Source "ChessBase"]
[SourceQuality "1"]
[TimeControl "40/5400+30:1800+30"]

{[%evp 12,59,13,6,10,10,29,12,28,25,89,15,35,38,73,77,68,71,66,78,58,0,39,51,41,37,93,100,102,77,176,173,238,234,230,238,392,381,422,422,777,780,1010,1007,1041,1010,1171,1143,1016,678]} 1. d4 {[%emt 0:00:02]} d5 {[%emt 0:00:02]} 2. c4 {[%emt 0:00:06]} e6 {[%emt 0:00:03]} 3. Nc3 {[%emt 0:00:07]} c6 {[%emt 0:00:03][%cal Bc7c6,Bc6c5][%mdl 32]} 4. e4 {[%emt 0:01:06]} dxe4 {[%emt 0:00:57]} 5. Nxe4 {[%emt 0:00:06]} Bb4+ {[%emt 0:00:02]} 6. Nc3 {[%emt 0:00:31]} c5 {[%emt 0:00:03]} 7. Nf3 {[%emt 0:00:55][%cal Bg1f3,Bf3d4,Bd4b5][%mdl 32]} Nf6 {[%emt 0:04:32] D31: Queen's Gambit Declined: Semi-Slav without ...Nf6 (+ Marshall Gambit and Noteboom) and Exchange Variation lines without ...Nf6.} 8. Be2 {[%emt 0:00:46]} Nc6 {[%emt 0:00:58][%cal Rc5d4]} 9. Be3 {[%emt 0:01:20]} cxd4 {[%emt 0:06:13] The position is equal.} 10. Nxd4 {[%emt 0:00:47]} Ne4 {[%emt 0:12:26]} (10... O-O $11) 11. Rc1 {[%emt 0:03:16]} (11. Nxc6 $16 {[%csl Gc6][%cal Rd1d8]} Qxd1+ 12. Rxd1 bxc6 13. O-O Bxc3 14. Bf3 (14. bxc3 Nxc3 15. Bf3 Nxd1 $15)) 11... Nxc3 {[%emt 0:01:33]} 12. bxc3 {[%emt 0:00:10]} Ba5 {[%emt 0:04:42]} 13. O-O $40 {[%emt 0:05:43][%mdl 128] [#] White wants a kill.} Bd7 $146 {[%emt 0:03:48]} ({Predecessor:} 13... O-O 14. Nxc6 bxc6 15. Qa4 Qc7 16. Bf3 Ba6 17. Bxc6 Rad8 18. Rfd1 Bc8 19. Rd4 Qe5 {1-0 (49) Korley,K (2450)-Hong,A (2390) Burlingame 2019}) 14. Nb5 {[%emt 0:07:45] Threatens to win with Nd6+.} O-O {[%emt 0:01:07]} 15. Bc5 {[%emt 0:04:52]} Ne7 {[%emt 0:01:49]} 16. Qd6 {[%emt 0:06:50]} ({Much worse is} 16. Nxa7 b6 17. Bxe7 Qxe7 $11) (16. Bf3 $14) 16... Ng6 {[%emt 0:05:44]} 17. Rfd1 {[%emt 0:08:31]} ({Don't go for} 17. Nxa7 $2 b6 18. Nb5 bxc5 $19) 17... Bxb5 {[%emt 0:24:57]} 18. cxb5 {[%emt 0:01:09]} Bc7 {[%emt 0:00:03]} (18... Qc8 $14 19. Be3 Rd8) 19. Qxd8 $16 {[%emt 0:02:34] White is much more active. The black rooks are badly placed.} Rfxd8 {[%emt 0:00:11]} 20. Bf3 {[%emt 0:11:14]} Bf4 {[%emt 0:02:33]} (20... Bb6 $16 {was necessary.} 21. Bxb6 axb6) 21. Rb1 $18 {[%emt 0:04:27]} ({Inferior is} 21. Bxb7 Bxc1 22. Rxc1 Rab8 $11) 21... Rdc8 {[%emt 0:08:11]} (21... Rdb8 $142 22. g3 Bc7) 22. Bxb7 {[%emt 0:01:49]} Rxc5 {[%emt 0:00:04]} 23. Bxa8 {[%emt 0:00:06]} Rxc3 $2 {[%emt 0:00:01]} (23... Kf8 {is a better defense.} 24. g3 Bc7) 24. g3 {[%emt 0:02:24]} Bg5 {[%emt 0:00:50] Against Rd8+} 25. a4 {[%emt 0:02:17] [#] And now Rd7 would win. White is clearly winning.} Bf6 {[%emt 0:07:00]} (25... Nf8 $142 26. a5 Ra3) 26. Rd7 {[%emt 0:04:37]} Ra3 {[%emt 0:03:10]} 27. Rxa7 {[%emt 0:01:08]} Bd4 {[%emt 0:00:04]} 28. b6 {[%emt 0:00:21]} Ra2 {[%emt 0:00:33]} 29. Bg2 {[%emt 0:02:21]} Bxf2+ {[%emt 0:02:22]} 30. Kh1 {[%emt 0:02:00] Weighted Error Value: White=0.10 (very precise) /Black=0.44} 1-0